[Event "Late-Titled-Tuesday-Blitz-February-13-2024"]
[Site "Chess.com"]
[Date "2024.02.13"]
[Round "4"]
[White "rezamahdavi2008"]
[Black "jefferyx"]
[Result "0-1"]
[WhiteElo "2859"]
[BlackElo "3038"]
[TimeControl "180+1"]
[EndTime "14:39:38 PST"]
[Termination "jefferyx won by resignation"]

1. e4 {[%clk 0:02:56.9]} 1... e5 {[%clk 0:03:00.2]} 2. Nf3 {[%clk 0:02:56.9]}
2... Nc6 {[%clk 0:03:00.7]} 3. Bc4 {[%clk 0:02:57.1]} 3... Bc5 {[%clk
0:03:00.6]} 4. b4 {[%clk 0:02:55.2]} 4... Bxb4 {[%clk 0:02:55.7]} 5. c3 {[%clk
0:02:54.5]} 5... Be7 {[%clk 0:02:36.6]} 6. d4 {[%clk 0:02:51.5]} 6... d6 {[%clk
0:02:24.5]} 7. Qb3 {[%clk 0:02:51.5]} 7... Na5 {[%clk 0:02:19.3]} 8. Bxf7+
{[%clk 0:02:52]} 8... Kf8 {[%clk 0:02:19.6]} 9. Qa4 {[%clk 0:02:52.7]} 9... Kxf7
{[%clk 0:02:16.7]} 10. Qxa5 {[%clk 0:02:52.9]} 10... c5 {[%clk 0:01:55.8]} 11.
Qxd8 {[%clk 0:02:47.2]} 11... Bxd8 {[%clk 0:01:56.1]} 12. dxe5 {[%clk
0:02:44.6]} 12... dxe5 {[%clk 0:01:51.4]} 13. Nxe5+ {[%clk 0:02:43.5]} 13... Ke6
{[%clk 0:01:49.3]} 14. Nd3 {[%clk 0:02:40.6]} 14... b6 {[%clk 0:01:49.5]} 15. f4
{[%clk 0:02:26.4]} 15... Bb7 {[%clk 0:01:46.2]} 16. O-O {[%clk 0:02:20.3]} 16...
Nf6 {[%clk 0:01:31]} 17. f5+ {[%clk 0:02:16.7]} 17... Kf7 {[%clk 0:01:31.1]} 18.
e5 {[%clk 0:02:17.2]} 18... Ne4 {[%clk 0:01:30.2]} 19. e6+ {[%clk 0:02:17]}
19... Kf6 {[%clk 0:01:30.4]} 20. c4 {[%clk 0:02:15.3]} 20... Bc7 {[%clk
0:01:22.8]} 21. Bb2+ {[%clk 0:02:14]} 21... Ke7 {[%clk 0:01:23.3]} 22. Na3
{[%clk 0:01:47]} 22... Rad8 {[%clk 0:01:20.5]} 23. Rad1 {[%clk 0:01:42.8]} 23...
Rhg8 {[%clk 0:01:17.6]} 24. Nb5 {[%clk 0:01:35.9]} 24... Bb8 {[%clk 0:01:18]}
25. Nc3 {[%clk 0:01:18.7]} 25... Nxc3 {[%clk 0:01:05]} 26. Bxc3 {[%clk
0:01:19.6]} 26... Be4 {[%clk 0:01:05.4]} 27. f6+ {[%clk 0:01:19.5]} 27... gxf6
{[%clk 0:01:04.2]} 28. Bxf6+ {[%clk 0:01:07.9]} 28... Kxe6 {[%clk 0:01:04.3]}
29. Rfe1 {[%clk 0:00:44.8]} 29... Rxg2+ {[%clk 0:01:03.1]} 30. Kf1 {[%clk
0:00:45]} 30... Kxf6 {[%clk 0:01:03.5]} 31. Rxe4 {[%clk 0:00:44.1]} 31... Rxh2
{[%clk 0:01:03.2]} 32. Re3 {[%clk 0:00:34.3]} 32... Rh1+ {[%clk 0:00:50.7]} 33.
Ke2 {[%clk 0:00:34]} 33... Rxd1 {[%clk 0:00:51.6]} 34. Kxd1 {[%clk 0:00:34.8]}
34... Rd4 {[%clk 0:00:52.4]} 35. Rf3+ {[%clk 0:00:33.1]} 35... Kg6 {[%clk
0:00:52.1]} 36. Ke2 {[%clk 0:00:32.3]} 36... Rxc4 {[%clk 0:00:51.2]} 37. Rf8
{[%clk 0:00:32.9]} 37... Bd6 {[%clk 0:00:48.7]} 38. Rd8 {[%clk 0:00:32.7]} 38...
Rd4 {[%clk 0:00:48.9]} 39. Rd7 {[%clk 0:00:31.9]} 39... c4 {[%clk 0:00:29.6]}
40. Ne1 {[%clk 0:00:29.5]} 40... c3 {[%clk 0:00:28.6]} 41. Nf3 {[%clk
0:00:29.6]} 41... c2 {[%clk 0:00:23]} 42. Nxd4 {[%clk 0:00:25.7]} 42... c1=Q
{[%clk 0:00:23.6]} 43. Rxd6+ {[%clk 0:00:26.6]} 43... Kh5 {[%clk 0:00:11.8]} 44.
Rd5+ {[%clk 0:00:25.8]} 44... Kg4 {[%clk 0:00:11.6]} 45. Kd3 {[%clk 0:00:19.5]}
45... Qa3+ {[%clk 0:00:10.8]} 46. Ke4 {[%clk 0:00:17.7]} 46... Qxa2 {[%clk
0:00:10.9]} 47. Rd7 {[%clk 0:00:12.7]} 47... Qb1+ {[%clk 0:00:11.1]} 48. Ke5
{[%clk 0:00:12.6]} 48... Qg6 {[%clk 0:00:08.1]} 49. Ne6 {[%clk 0:00:11.5]} 49...
Qf5+ {[%clk 0:00:08]} 50. Kd6 {[%clk 0:00:11.7]} 50... h5 {[%clk 0:00:06.3]} 51.
Rg7+ {[%clk 0:00:11.7]} 51... Kh4 {[%clk 0:00:06.1]} 52. Ke7 {[%clk 0:00:08.9]}
52... Qe5 {[%clk 0:00:05.9]} 53. Rg1 {[%clk 0:00:06.6]} 53... b5 {[%clk
0:00:05.7]} 54. Kf7 {[%clk 0:00:06.1]} 54... b4 {[%clk 0:00:05.2]} 55. Ke7
{[%clk 0:00:02.2]} 55... b3 {[%clk 0:00:05.3]} 56. Rb1 {[%clk 0:00:01.8]} 56...
b2 {[%clk 0:00:05.3]} 57. Kd7 {[%clk 0:00:02.2]} 57... Qd5+ {[%clk 0:00:05.1]}
58. Ke7 {[%clk 0:00:02.4]} 58... Qd2 {[%clk 0:00:05.2]} 59. Kf6 {[%clk
0:00:01.9]} 59... Qc1 {[%clk 0:00:05.1]} 60. Ng7 {[%clk 0:00:01.5]} 60... Qxb1
{[%clk 0:00:05.2]} 61. Nf5+ {[%clk 0:00:02.4]} 61... Qxf5+ {[%clk 0:00:05.8]}
0-1

[Event "Late-Titled-Tuesday-Blitz-February-13-2024"]
[Site "Chess.com"]
[Date "2024.02.13"]
[Round "4"]
[White "BabageldiAnnaberdiyev"]
[Black "sari07"]
[Result "1/2-1/2"]
[WhiteElo "2638"]
[BlackElo "2408"]
[TimeControl "180+1"]
[EndTime "14:39:41 PST"]
[Termination "Game drawn - insufficient material"]

1. e4 {[%clk 0:03:00.9]} 1... e5 {[%clk 0:02:59.6]} 2. Nf3 {[%clk 0:02:59.6]}
2... Nc6 {[%clk 0:03:00]} 3. Bc4 {[%clk 0:03:00]} 3... Nf6 {[%clk 0:02:59.4]} 4.
d4 {[%clk 0:02:59.9]} 4... exd4 {[%clk 0:02:59.2]} 5. O-O {[%clk 0:03:00.6]}
5... Nxe4 {[%clk 0:02:59]} 6. Re1 {[%clk 0:03:01.1]} 6... d5 {[%clk 0:02:59.6]}
7. Bxd5 {[%clk 0:03:01.9]} 7... Qxd5 {[%clk 0:03:00.2]} 8. Nc3 {[%clk
0:03:02.4]} 8... Qd7 {[%clk 0:03:00.8]} 9. Nxe4 {[%clk 0:03:01.6]} 9... Be7
{[%clk 0:03:00.2]} 10. Bg5 {[%clk 0:03:02.1]} 10... O-O {[%clk 0:02:53.2]} 11.
Bxe7 {[%clk 0:03:02.2]} 11... Qxe7 {[%clk 0:02:32.7]} 12. Nxd4 {[%clk
0:03:02.3]} 12... Bd7 {[%clk 0:02:06.1]} 13. Nb3 {[%clk 0:02:59.6]} 13... Rae8
{[%clk 0:01:34.4]} 14. Nec5 {[%clk 0:02:57.9]} 14... Qxe1+ {[%clk 0:01:33.8]}
15. Qxe1 {[%clk 0:02:58.2]} 15... Rxe1+ {[%clk 0:01:34.6]} 16. Rxe1 {[%clk
0:02:57.5]} 16... Bc8 {[%clk 0:01:35.2]} 17. f3 {[%clk 0:02:55.2]} 17... b6
{[%clk 0:01:31.7]} 18. Nd3 {[%clk 0:02:55.3]} 18... Bd7 {[%clk 0:01:20.2]} 19.
Kf2 {[%clk 0:02:53.8]} 19... Re8 {[%clk 0:01:18.2]} 20. Rxe8+ {[%clk 0:02:51.6]}
20... Bxe8 {[%clk 0:01:19.1]} 21. c3 {[%clk 0:02:51.4]} 21... f6 {[%clk
0:01:17.8]} 22. Nf4 {[%clk 0:02:50.3]} 22... Bf7 {[%clk 0:01:15.1]} 23. Nc1
{[%clk 0:02:50.3]} 23... g5 {[%clk 0:01:04.2]} 24. Nfe2 {[%clk 0:02:45.7]} 24...
Kf8 {[%clk 0:00:58.4]} 25. Ke3 {[%clk 0:02:45.5]} 25... Ke7 {[%clk 0:00:57.8]}
26. Nd4 {[%clk 0:02:44.8]} 26... Nxd4 {[%clk 0:00:55.1]} 27. Kxd4 {[%clk
0:02:45.7]} 27... Kd6 {[%clk 0:00:55.1]} 28. b3 {[%clk 0:02:37.8]} 28... c5+
{[%clk 0:00:53.6]} 29. Ke3 {[%clk 0:02:37.9]} 29... Bg6 {[%clk 0:00:49.6]} 30.
Ne2 {[%clk 0:02:36.5]} 30... a5 {[%clk 0:00:37.7]} 31. c4 {[%clk 0:02:25]} 31...
Ke5 {[%clk 0:00:23.5]} 32. g3 {[%clk 0:02:22.9]} 32... Be8 {[%clk 0:00:15.8]}
33. Nc3 {[%clk 0:02:20.2]} 33... Bc6 {[%clk 0:00:15]} 34. Ne2 {[%clk 0:02:02.5]}
34... Kf5 {[%clk 0:00:14.4]} 35. g4+ {[%clk 0:01:58.7]} 35... Ke5 {[%clk
0:00:14.5]} 36. Ng3 {[%clk 0:01:59.3]} 36... a4 {[%clk 0:00:10.8]} 37. Nf5
{[%clk 0:01:51]} 37... a3 {[%clk 0:00:10.4]} 38. Ng3 {[%clk 0:01:46.5]} 38... b5
{[%clk 0:00:09.7]} 39. cxb5 {[%clk 0:01:45.2]} 39... Bxb5 {[%clk 0:00:10.6]} 40.
Ne4 {[%clk 0:01:45.2]} 40... c4 {[%clk 0:00:09.9]} 41. bxc4 {[%clk 0:01:43.2]}
41... Bxc4 {[%clk 0:00:10.8]} 42. Nc3 {[%clk 0:01:41.3]} 42... f5 {[%clk
0:00:10.5]} 43. gxf5 {[%clk 0:01:39.7]} 43... Kxf5 {[%clk 0:00:11.4]} 44. Nb1
{[%clk 0:01:39.6]} 44... Bxa2 {[%clk 0:00:11]} 45. Nxa3 {[%clk 0:01:40.5]} 45...
Bd5 {[%clk 0:00:10.8]} 46. Nb5 {[%clk 0:01:39.8]} 46... Ba8 {[%clk 0:00:09.6]}
47. Nd4+ {[%clk 0:01:40.1]} 47... Kg6 {[%clk 0:00:09.6]} 48. Kf2 {[%clk
0:01:38.1]} 48... h5 {[%clk 0:00:10]} 49. Kg3 {[%clk 0:01:36.3]} 49... Kf6
{[%clk 0:00:10.2]} 50. Nb5 {[%clk 0:01:34.4]} 50... Kg6 {[%clk 0:00:09.8]} 51.
Nc7 {[%clk 0:01:33.3]} 51... Bb7 {[%clk 0:00:08.8]} 52. Ne6 {[%clk 0:01:33.6]}
52... Kf6 {[%clk 0:00:08.7]} 53. Nc5 {[%clk 0:01:33]} 53... Ba8 {[%clk
0:00:08.6]} 54. Nd3 {[%clk 0:01:14]} 54... Kg6 {[%clk 0:00:08.4]} 55. Nf2 {[%clk
0:01:13.6]} 55... Kf6 {[%clk 0:00:08.5]} 56. Nd1 {[%clk 0:01:12.4]} 56... Ke5
{[%clk 0:00:08.3]} 57. Ne3 {[%clk 0:01:10.8]} 57... Kf6 {[%clk 0:00:06.6]} 58.
h3 {[%clk 0:01:08.8]} 58... Kg6 {[%clk 0:00:05.9]} 59. Nc4 {[%clk 0:01:08.2]}
59... Kf6 {[%clk 0:00:06.1]} 60. Nb6 {[%clk 0:01:08.9]} 60... Bb7 {[%clk
0:00:06.1]} 61. Nd7+ {[%clk 0:01:08.9]} 61... Kg6 {[%clk 0:00:06.5]} 62. Nc5
{[%clk 0:01:09.8]} 62... Ba8 {[%clk 0:00:06.8]} 63. Nd7 {[%clk 0:01:07]} 63...
Kf5 {[%clk 0:00:06.5]} 64. Nb6 {[%clk 0:01:04.8]} 64... Bb7 {[%clk 0:00:06.8]}
65. Nc4 {[%clk 0:01:04.5]} 65... Kg6 {[%clk 0:00:06.7]} 66. Kf2 {[%clk
0:01:03.5]} 66... Ba8 {[%clk 0:00:06.8]} 67. Nd6 {[%clk 0:01:03]} 67... Bc6
{[%clk 0:00:06.2]} 68. Nc4 {[%clk 0:01:01.2]} 68... Bb7 {[%clk 0:00:06.3]} 69.
Ne5+ {[%clk 0:01:00.2]} 69... Kf5 {[%clk 0:00:06]} 70. Nd3 {[%clk 0:01:01.1]}
70... Bc8 {[%clk 0:00:05.6]} 71. Kg3 {[%clk 0:00:59.3]} 71... Kf6 {[%clk
0:00:05.9]} 72. Nf2 {[%clk 0:00:56.1]} 72... Bb7 {[%clk 0:00:06.1]} 73. Nd3
{[%clk 0:00:52.8]} 73... Ba8 {[%clk 0:00:06.5]} 74. Nc5 {[%clk 0:00:52.3]} 74...
Kf5 {[%clk 0:00:06.6]} 75. Na6 {[%clk 0:00:49.3]} 75... h4+ {[%clk 0:00:05.9]}
76. Kg2 {[%clk 0:00:46.8]} 76... Kf4 {[%clk 0:00:06.8]} 77. Nc7 {[%clk
0:00:46.7]} 77... Bxf3+ {[%clk 0:00:07.5]} 78. Kh2 {[%clk 0:00:47.3]} 78... Bc6
{[%clk 0:00:07.1]} 79. Ne6+ {[%clk 0:00:47.2]} 79... Kf5 {[%clk 0:00:06.6]} 80.
Nd4+ {[%clk 0:00:47.6]} 80... Kf4 {[%clk 0:00:06.2]} 81. Nxc6 {[%clk 0:00:48.5]}
81... g4 {[%clk 0:00:07]} 82. Nd4 {[%clk 0:00:47.6]} 82... gxh3 {[%clk
0:00:07.1]} 83. Kxh3 {[%clk 0:00:48.5]} 83... Ke4 {[%clk 0:00:07.7]} 84. Kxh4
{[%clk 0:00:47.6]} 1/2-1/2

[Event "Late-Titled-Tuesday-Blitz-February-13-2024"]
[Site "Chess.com"]
[Date "2024.02.13"]
[Round "4"]
[White "Artemiki"]
[Black "kibromNNN"]
[Result "0-1"]
[WhiteElo "2421"]
[BlackElo "1801"]
[TimeControl "180+1"]
[EndTime "14:39:41 PST"]
[Termination "kibromNNN won on time"]

1. e4 {[%clk 0:03:00.3]} 1... e5 {[%clk 0:02:59.4]} 2. Nf3 {[%clk 0:02:59.6]}
2... Nc6 {[%clk 0:02:58.1]} 3. Bb5 {[%clk 0:02:59.4]} 3... Nf6 {[%clk
0:02:56.8]} 4. O-O {[%clk 0:02:56.2]} 4... a6 {[%clk 0:02:56.1]} 5. Ba4 {[%clk
0:02:54.1]} 5... b5 {[%clk 0:02:53.3]} 6. Bb3 {[%clk 0:02:53.4]} 6... d6 {[%clk
0:02:52.3]} 7. c3 {[%clk 0:02:52.2]} 7... Be7 {[%clk 0:02:51.9]} 8. Re1 {[%clk
0:02:52.1]} 8... O-O {[%clk 0:02:50.6]} 9. h3 {[%clk 0:02:47.6]} 9... Nb8 {[%clk
0:02:45.7]} 10. d4 {[%clk 0:02:46.4]} 10... Nbd7 {[%clk 0:02:43.6]} 11. Nbd2
{[%clk 0:02:46.4]} 11... Bb7 {[%clk 0:02:40.9]} 12. Bc2 {[%clk 0:02:40.3]} 12...
Re8 {[%clk 0:02:38.6]} 13. Nf1 {[%clk 0:02:35.4]} 13... Bf8 {[%clk 0:02:37.1]}
14. Ng3 {[%clk 0:02:28]} 14... g6 {[%clk 0:02:35.7]} 15. a4 {[%clk 0:02:21.4]}
15... Bg7 {[%clk 0:02:30]} 16. d5 {[%clk 0:02:08.4]} 16... c6 {[%clk 0:02:26.8]}
17. dxc6 {[%clk 0:02:03]} 17... Bxc6 {[%clk 0:02:24.9]} 18. Qxd6 {[%clk
0:01:59.1]} 18... Qc8 {[%clk 0:02:16.6]} 19. Bg5 {[%clk 0:01:21.1]} 19... Qb7
{[%clk 0:02:04.4]} 20. axb5 {[%clk 0:00:47.3]} 20... axb5 {[%clk 0:01:52.5]} 21.
Bxf6 {[%clk 0:00:37.8]} 21... Bxf6 {[%clk 0:01:43.7]} 22. Bb3 {[%clk 0:00:31.7]}
22... Rad8 {[%clk 0:01:33.3]} 23. Qd1 {[%clk 0:00:11.5]} 23... Nc5 {[%clk
0:01:27.9]} 24. Qc2 {[%clk 0:00:11.6]} 24... Nd3 {[%clk 0:01:13]} 25. Red1
{[%clk 0:00:09.9]} 25... Bxe4 {[%clk 0:01:01]} 26. Nxe4 {[%clk 0:00:08.8]} 26...
Qxe4 {[%clk 0:01:01.3]} 27. Ra7 {[%clk 0:00:05.3]} 27... Re7 {[%clk 0:00:50.9]}
28. Rxe7 {[%clk 0:00:03.4]} 28... Bxe7 {[%clk 0:00:51.2]} 29. Nxe5 {[%clk
0:00:02.1]} 29... Qxe5 {[%clk 0:00:43.3]} 30. Rxd3 {[%clk 0:00:02.2]} 30... Rxd3
{[%clk 0:00:43.5]} 31. Qxd3 {[%clk 0:00:02.9]} 31... Bd6 {[%clk 0:00:40.8]} 32.
g3 {[%clk 0:00:01]} 32... Qe1+ {[%clk 0:00:39.8]} 33. Kg2 {[%clk 0:00:01.4]}
33... Bc5 {[%clk 0:00:36.3]} 34. Qf3 {[%clk 0:00:01.8]} 34... Qe7 {[%clk
0:00:30.8]} 35. Bd5 {[%clk 0:00:02.2]} 35... h5 {[%clk 0:00:26.7]} 36. b4 {[%clk
0:00:02.9]} 36... Ba7 {[%clk 0:00:21.6]} 37. h4 {[%clk 0:00:02.5]} 37... Qc7
{[%clk 0:00:19.7]} 38. Bc6 {[%clk 0:00:02.9]} 38... Qb6 {[%clk 0:00:15.9]} 39.
Bd5 {[%clk 0:00:01.3]} 39... Qc7 {[%clk 0:00:14.1]} 40. Be4 {[%clk 0:00:01.9]}
40... Bb6 {[%clk 0:00:10.1]} 41. Bc2 {[%clk 0:00:02.8]} 41... Qe7 {[%clk
0:00:07.8]} 42. Bb3 {[%clk 0:00:03.2]} 42... Bc7 {[%clk 0:00:06.1]} 43. Qd3
{[%clk 0:00:02.3]} 43... Qf6 {[%clk 0:00:04.3]} 44. Qf3 {[%clk 0:00:01.8]} 44...
Qxf3+ {[%clk 0:00:02.9]} 45. Kxf3 {[%clk 0:00:02.6]} 45... Be5 {[%clk
0:00:03.6]} 46. c4 {[%clk 0:00:02.7]} 46... bxc4 {[%clk 0:00:02.3]} 0-1

[Event "Late-Titled-Tuesday-Blitz-February-13-2024"]
[Site "Chess.com"]
[Date "2024.02.13"]
[Round "4"]
[White "lucliasco"]
[Black "DenLaz"]
[Result "1/2-1/2"]
[WhiteElo "2848"]
[BlackElo "3067"]
[TimeControl "180+1"]
[EndTime "14:39:56 PST"]
[Termination "Game drawn - insufficient material"]

1. e4 {[%clk 0:02:59]} 1... c5 {[%clk 0:03:00]} 2. Nc3 {[%clk 0:02:58.6]} 2...
e6 {[%clk 0:03:00.1]} 3. d4 {[%clk 0:02:57.6]} 3... cxd4 {[%clk 0:02:59]} 4.
Qxd4 {[%clk 0:02:58.5]} 4... Nc6 {[%clk 0:02:59.2]} 5. Qe3 {[%clk 0:02:57.8]}
5... Nf6 {[%clk 0:02:59]} 6. Bd2 {[%clk 0:02:57.9]} 6... Bb4 {[%clk 0:02:55.2]}
7. O-O-O {[%clk 0:02:54.1]} 7... O-O {[%clk 0:02:54.5]} 8. a3 {[%clk 0:02:47.2]}
8... Ba5 {[%clk 0:02:54.3]} 9. f4 {[%clk 0:02:44.1]} 9... d5 {[%clk 0:02:44.5]}
10. exd5 {[%clk 0:02:43.7]} 10... exd5 {[%clk 0:02:43.8]} 11. Qg3 {[%clk
0:02:38.5]} 11... d4 {[%clk 0:01:58.5]} 12. Nb1 {[%clk 0:02:33.5]} 12... Ne4
{[%clk 0:01:58.3]} 13. Qf3 {[%clk 0:02:21.4]} 13... Re8 {[%clk 0:01:54.9]} 14.
Bd3 {[%clk 0:02:16.3]} 14... Bf5 {[%clk 0:01:46.3]} 15. Bxa5 {[%clk 0:02:07.4]}
15... Nxa5 {[%clk 0:01:45.4]} 16. g4 {[%clk 0:02:06.1]} 16... Rc8 {[%clk
0:01:27.1]} 17. b4 {[%clk 0:01:59.8]} 17... Bxg4 {[%clk 0:01:01]} 18. Qxg4
{[%clk 0:01:42.4]} 18... Nf2 {[%clk 0:01:00.8]} 19. Qf3 {[%clk 0:01:42.5]} 19...
Nxd1 {[%clk 0:01:00]} 20. Qxd1 {[%clk 0:01:38.2]} 20... Nc4 {[%clk 0:01:00.5]}
21. Ne2 {[%clk 0:01:25.1]} 21... Ne3 {[%clk 0:00:58.8]} 22. Qd2 {[%clk
0:01:25.7]} 22... Qd5 {[%clk 0:00:57.3]} 23. Rg1 {[%clk 0:01:19.6]} 23... g6
{[%clk 0:00:52.9]} 24. f5 {[%clk 0:01:11.3]} 24... Nxf5 {[%clk 0:00:51.6]} 25.
Bxf5 {[%clk 0:01:08.9]} 25... Qxf5 {[%clk 0:00:52.5]} 26. Nxd4 {[%clk
0:01:09.4]} 26... Qe5 {[%clk 0:00:49.6]} 27. c3 {[%clk 0:01:06.7]} 27... Red8
{[%clk 0:00:49.7]} 28. Kb2 {[%clk 0:01:06.1]} 28... a5 {[%clk 0:00:47.7]} 29.
Rg3 {[%clk 0:01:02.2]} 29... axb4 {[%clk 0:00:46.9]} 30. axb4 {[%clk 0:01:03.1]}
30... Rc4 {[%clk 0:00:45.6]} 31. Rd3 {[%clk 0:00:55.8]} 31... Re8 {[%clk
0:00:40.6]} 32. h3 {[%clk 0:00:51.8]} 32... Rc7 {[%clk 0:00:39]} 33. Na3 {[%clk
0:00:52.7]} 33... Qf6 {[%clk 0:00:36.7]} 34. Nac2 {[%clk 0:00:51.4]} 34... Rce7
{[%clk 0:00:36.5]} 35. Rg3 {[%clk 0:00:40.6]} 35... Re4 {[%clk 0:00:32.5]} 36.
Qd3 {[%clk 0:00:37.3]} 36... Qe5 {[%clk 0:00:32.7]} 37. Qc4 {[%clk 0:00:37.3]}
37... Qxg3 {[%clk 0:00:32.3]} 38. Qb5 {[%clk 0:00:36.7]} 38... Qe5 {[%clk
0:00:31.8]} 39. Qxb7 {[%clk 0:00:34.3]} 39... Qe7 {[%clk 0:00:30.6]} 40. Qd5
{[%clk 0:00:32]} 40... Re5 {[%clk 0:00:30.6]} 41. Qf3 {[%clk 0:00:29.9]} 41...
Qc7 {[%clk 0:00:30.3]} 42. b5 {[%clk 0:00:27.9]} 42... Qb6 {[%clk 0:00:29.5]}
43. Qd3 {[%clk 0:00:25.4]} 43... Rb8 {[%clk 0:00:29.1]} 44. c4 {[%clk
0:00:23.4]} 44... Qc5 {[%clk 0:00:29.8]} 45. Nb3 {[%clk 0:00:21.5]} 45... Qe7
{[%clk 0:00:27.4]} 46. Qg3 {[%clk 0:00:19.7]} 46... Qf6 {[%clk 0:00:27.6]} 47.
Qc3 {[%clk 0:00:17]} 47... Rf5 {[%clk 0:00:27]} 48. Qxf6 {[%clk 0:00:15.2]}
48... Rxf6 {[%clk 0:00:27.9]} 49. Ncd4 {[%clk 0:00:15.5]} 49... h5 {[%clk
0:00:20.4]} 50. c5 {[%clk 0:00:16]} 50... g5 {[%clk 0:00:20.9]} 51. b6 {[%clk
0:00:14.4]} 51... g4 {[%clk 0:00:21.2]} 52. hxg4 {[%clk 0:00:14.8]} 52... hxg4
{[%clk 0:00:22.1]} 53. Ne2 {[%clk 0:00:13.4]} 53... Re6 {[%clk 0:00:21]} 54.
Nbd4 {[%clk 0:00:13.3]} 54... Re4 {[%clk 0:00:19.9]} 55. Kc3 {[%clk 0:00:13.3]}
55... f5 {[%clk 0:00:14]} 56. Kc4 {[%clk 0:00:11.2]} 56... f4 {[%clk 0:00:11.3]}
57. Kd5 {[%clk 0:00:08.7]} 57... Rbe8 {[%clk 0:00:04]} 58. c6 {[%clk 0:00:07.2]}
58... f3 {[%clk 0:00:03.7]} 59. Ng3 {[%clk 0:00:06.8]} 59... R4e5+ {[%clk
0:00:04.4]} 60. Kc4 {[%clk 0:00:06.9]} 60... f2 {[%clk 0:00:04.5]} 61. b7 {[%clk
0:00:07.1]} 61... R5e7 {[%clk 0:00:04.4]} 62. Kc5 {[%clk 0:00:07.4]} 62... Rf7
{[%clk 0:00:04.2]} 63. Nf1 {[%clk 0:00:06.1]} 63... g3 {[%clk 0:00:03.8]} 64.
Nxg3 {[%clk 0:00:06.1]} 64... f1=Q {[%clk 0:00:04.3]} 65. Nxf1 {[%clk
0:00:06.7]} 65... Rxf1 {[%clk 0:00:05.1]} 66. c7 {[%clk 0:00:07.4]} 66... Rc1+
{[%clk 0:00:05.3]} 67. Kd6 {[%clk 0:00:08.1]} 67... Rxc7 {[%clk 0:00:04.7]} 68.
Kxc7 {[%clk 0:00:08.2]} 68... Re7+ {[%clk 0:00:05.6]} 69. Kc6 {[%clk 0:00:08.9]}
69... Rxb7 {[%clk 0:00:06.5]} 70. Kxb7 {[%clk 0:00:09.7]} 1/2-1/2